[Event "Krakow Championship-A 2022"]
[Site "Krakow"]
[Date "2022.06.25"]
[Round "1.14"]
[White "Piekielny, Pawel"]
[Black "Seemann, Jakub"]
[Result "1-0"]
[ECO "B68"]
[WhiteElo "2230"]
[BlackElo "2363"]
[Annotator "TA"]
[PlyCount "77"]
[EventDate "2022.06.25"]
[EventType "swiss"]
[EventCountry "POL"]
[SourceTitle "playchess.com"]
[Source "ChessBase"]
[SourceQuality "1"]
[TimeControl "40/5400+30:1800+30"]

{[%evp 22,77,0,0,14,-12,-2,1,-23,-10,-18,-67,-42,-20,0,0,77,71,93,80,87,45,54,17,22,0,0,0,0,11,0,-243,-239,-217,-222,-411,-411,-410,-410,-403,-403,-922,-902,-716,54,-29992,-29993,-29993,449,383,997,967,863,967,1075,948,986,968]} 1. e4 {[%emt 0:00:02]} c5 {[%emt 0:00:07]} 2. Nf3 {[%emt 0:00:06]} d6 {[%emt 0:00:07]} 3. d4 {[%emt 0:00:08]} cxd4 {[%emt 0:00:06]} 4. Nxd4 {[%emt 0:00:05]} Nf6 {[%emt 0:00:08]} 5. Nc3 {[%emt 0:00:07]} Nc6 {[%emt 0:00:06]} 6. Bg5 {[%emt 0:00:28]} e6 {[%emt 0:00:09]} 7. Qd2 {[%emt 0:00:07]} a6 {[%emt 0:00:09]} 8. O-O-O {[%emt 0:00:08]} Bd7 {[%emt 0:00:09]} 9. f4 {[%emt 0:00:47]} Be7 {[%emt 0:00:15]} 10. Nf3 {[%emt 0:01:35]} b5 {[%emt 0:00:06][%cal Bb7b5,Bb5b4][%mdl 32]} 11. Bd3 {[%emt 0:02:11]} b4 {[%emt 0:08:40]} 12. Ne2 {[%emt 0:01:04]} Qb6 {[%emt 0:04:16] B68: Sicilian: Richter-Rauzer: 7...a6 8 0-0-0 Bd7 9 f4 Be7 .} 13. e5 {[%emt 0:09:35]} dxe5 {[%emt 0:05:13]} 14. fxe5 {[%emt 0:06:03]} Nd5 {[%emt 0:01:03] The position is equal.} 15. Be4 {[%emt 0:17:48] [#]} h6 $146 {[%emt 0:12:40]} ({Predecessor:} 15... Bxg5 16. Nxg5 Nxe5 17. Bxd5 exd5 18. Nf4 O-O 19. Nxd5 Qa5 20. Kb1 Bg4 21. Rde1 Ng6 22. Qxb4 Qxd5 23. Qxg4 {½-½ (32) Martchenko,A (2039)-Bluvshtein,M (2558) Guelph 2009}) 16. Bf4 {[%emt 0:09:13]} (16. Bxe7 $1 $11 {is superior.} Ncxe7 17. Nf4) 16... b3 {[%emt 0:18:16]} 17. cxb3 {[%emt 0:04:07]} (17. Bxd5 bxc2 18. Kxc2 (18. Be4 $2 cxd1=N 19. Rxd1 Rd8 $19) 18... Nb4+ 19. Kb1 Nxd5 $17) 17... Ncb4 {[%emt 0:02:48]} 18. Kb1 {[%emt 0:02:28]} Bc6 {[%emt 0:07:06]} (18... Qa5 $2 19. a3 $18) (18... a5 $1 $11 {remains equal.}) 19. Nfd4 $16 {[%emt 0:07:21] Strongly threatening a3.} Bb7 {[%emt 0:01:43]} 20. a3 {[%emt 0:05:31]} a5 {[%emt 0:01:51]} 21. axb4 {[%emt 0:01:20]} axb4 {[%emt 0:00:15]} 22. Rc1 {[%emt 0:06:54] White wants to play Qd3.} O-O {[%emt 0:01:03][%cal Od5c3]} (22... Qa7 23. Nb5 Qa2+ 24. Kc2 $16) 23. Bxd5 {[%emt 0:05:00]} Bxd5 {[%emt 0:00:15]} 24. Kc2 {[%emt 0:00:19]} f6 {[%emt 0:04:34] White must now prevent ...fxe5.} 25. Qe3 {[%emt 0:04:30]} Rad8 {[%emt 0:12:44]} 26. Rhd1 $2 {[%emt 0:06:50] [#]} (26. Kb1 $6 g5 $16) (26. h4 $11) 26... fxe5 $1 $19 {[%emt 0:06:39]} 27. Bxe5 {[%emt 0:00:52]} (27. Qxe5 Bf6 28. Qe3 e5 $19) 27... Bg5 {[%emt 0:00:05] This bishop pair is nice.} 28. Nf4 $2 {[%emt 0:01:43]} (28. Qd3 {is the only way for White.} Rf5 29. Nxf5 exf5 30. Bd4 (30. Qxf5 $2 Qc6+ 31. Kb1 Be4+ 32. Rd3 Qd5 $19) (30. Kb1 $2 Be4 $19) 30... Qc6+ 31. Kb1 Bxc1 32. Rxc1) 28... Bxf4 {[%emt 0:01:02]} 29. Bxf4 {[%emt 0:00:05] Be5 is the strong threat.} e5 $1 {[%emt 0:00:08]} 30. Bxe5 {[%emt 0:01:36] Hoping for Rd3.} Qg6+ {[%emt 0:00:08]} 31. Kd2 {[%emt 0:02:25]} (31. Rd3 $142 Be4 32. Qg3 (32. Rcd1 $2 Qxg2+ 33. R1d2 Rc8+ 34. Nc6 Rxc6+ 35. Bc3 Qh1 $19) 32... Bxd3+ 33. Kd2) 31... Qxg2+ {[%emt 0:00:24]} 32. Kd3 {[%emt 0:00:05]} Bf7 $2 {[%emt 0:08:40]} ({And not} 32... Rf3 33. Nxf3 Bxf3+ 34. Bd4 Be2+ 35. Qxe2 $17) (32... Be6 $1 $19 {[%cal Re6f5] ( -> ...Bf5+)} 33. Re1 Rf3) 33. Rg1 $2 {[%emt 0:02:37][%mdl 8192]} (33. Rc5 $14 g5 34. Rdc1) 33... Bg6+ {[%emt 0:00:16]} 34. Kc4 {[%emt 0:00:05]} Rc8+ $4 {[%emt 0:05:15][%mdl 8192]} (34... Qd5+ {and life is good for Black.} 35. Kxb4 {[#]} Rb8+ $1 {[%mdl 512]} 36. Bxb8 Rxb8+ 37. Kc3 Qa5+ 38. Kc4 Rb4+ 39. Kc3 Rb5+ 40. Kc4 Rc5#) 35. Kxb4 $18 {[%emt 0:00:06]} Rb8+ $2 {[%emt 0:00:54]} (35... Qb7+ 36. Nb5 Qe7+ 37. Rc5 Rf3 38. Rxg6 Rxe3 39. Rxg7+ Qxg7 40. Rxc8+ Qf8+ 41. Rxf8+ Kxf8) 36. Bxb8 {[%emt 0:01:01] White is clearly winning.} Rxb8+ {[%emt 0:00:01]} 37. Nb5 {[%emt 0:00:30]} Qb7 {[%emt 0:00:52]} 38. Rc5 {[%emt 0:02:37]} ({Not} 38. Rxg6 Qxb5+ 39. Kc3 Rc8+ 40. Kd2 Qd5+ 41. Qd3 (41. Ke2 Qh5+ 42. Ke1 Rxc1+ 43. Qxc1 Qxg6 $11) 41... Qxd3+ 42. Kxd3 Rxc1 $16) 38... Re8 {[%emt 0:00:01]} 39. Re5 {[%emt 0:00:14] Quite a comeback for White.  Weighted Error Value: White=0.86/Black=0.46} 1-0

[Event "Krakow Championship-A 2022"]
[Site "Krakow"]
[Date "2022.06.25"]
[Round "1.15"]
[White "Rudolf, Michal"]
[Black "Kantorik, Marian"]
[Result "1/2-1/2"]
[ECO "C50"]
[WhiteElo "2361"]
[BlackElo "2211"]
[Annotator "RC"]
[PlyCount "61"]
[EventDate "2022.06.25"]
[EventType "swiss"]
[EventCountry "POL"]
[SourceTitle "playchess.com"]
[Source "ChessBase"]
[SourceQuality "1"]
[TimeControl "40/5400+30:1800+30"]

1. e4 {[%emt 0:00:05]} e5 {[%emt 0:00:40]} 2. Nf3 {[%emt 0:00:07]} Nc6 {[%emt 0:00:07]} 3. Bc4 {[%emt 0:00:04]} Bc5 {[%emt 0:00:20]} 4. d3 {[%emt 0:00:11]} Nf6 {[%emt 0:01:04]} 5. O-O {[%emt 0:00:07]} d6 {[%emt 0:01:48]} 6. c3 {[%emt 0:00:13]} a6 {[%emt 0:04:58]} 7. Re1 {[%emt 0:02:07]} Ba7 {[%emt 0:06:32]} 8. Bb3 {[%emt 0:00:14]} h6 {[%emt 0:00:31]} 9. Nbd2 {[%emt 0:00:35]} O-O {[%emt 0:00:11]} 10. Nf1 {[%emt 0:00:28]} Nh5 {[%emt 0:05:25]} 11. Be3 {[%emt 0:05:07]} Qf6 {[%emt 0:01:44]} 12. Bxa7 {[%emt 0:05:40]} Rxa7 {[%emt 0:00:16]} 13. Ne3 {[%emt 0:00:14]} Ne7 {[%emt 0:01:33]} 14. d4 {[%emt 0:12:12]} Nf4 {[%emt 0:00:59]} 15. g3 {[%emt 0:11:34]} Nh3+ {[%emt 0:08:06]} 16. Kg2 {[%emt 0:00:27]} Ng5 {[%emt 0:02:41]} 17. Nxg5 {[%emt 0:00:14]} Qxg5 {[%emt 0:00:18]} 18. dxe5 {[%emt 0:09:06]} dxe5 {[%emt 0:00:21]} 19. h4 {[%emt 0:01:46]} Qg6 {[%emt 0:10:09]} 20. Qf3 {[%emt 0:00:40]} Ra8 {[%emt 0:04:33]} 21. Nd5 {[%emt 0:05:19]} Nxd5 {[%emt 0:04:29]} 22. exd5 {[%emt 0:00:07]} Re8 {[%emt 0:06:26]} 23. d6 {[%emt 0:08:13]} cxd6 {[%emt 0:05:43]} 24. Rad1 {[%emt 0:00:09]} Bg4 {[%emt 0:05:34]} 25. Bxf7+ {[%emt 0:00:10]} Qxf7 {[%emt 0:00:06]} 26. Qxg4 {[%emt 0:00:04]} d5 {[%emt 0:04:36]} 27. Re3 {[%emt 0:03:06]} e4 {[%emt 0:06:05]} 28. c4 {[%emt 0:03:43]} Rf8 {[%emt 0:03:39]} 29. Qe2 {[%emt 0:02:45]} dxc4 {[%emt 0:01:43]} 30. Rxe4 {[%emt 0:00:13]} Rae8 {[%emt 0:01:53]} 31. Rxe8 {[%emt 0:03:19]} 1/2-1/2

[Event "Krakow Championship-A 2022"]
[Site "Krakow"]
[Date "2022.06.25"]
[Round "1.16"]
[White "Kyc, Jerzy"]
[Black "Holtel, Jasper"]
[Result "1-0"]
[ECO "B99"]
[WhiteElo "2213"]
[BlackElo "2347"]
[Annotator "TA"]
[PlyCount "129"]
[EventDate "2022.06.25"]
[EventType "swiss"]
[EventCountry "POL"]
[SourceTitle "playchess.com"]
[Source "ChessBase"]
[SourceQuality "1"]
[TimeControl "40/5400+30:1800+30"]

{[%evp 29,129,0,0,0,0,0,-10,-20,0,-49,0,-44,-23,-97,-102,-161,-161,-152,-124,-115,-113,-111,-118,-114,-107,-118,-128,-109,-118,-125,-85,-136,-119,-120,-136,-285,-91,-139,0,-268,-139,-273,0,0,0,0,0,0,0,0,0,-124,-118,-119,-110,-120,-101,-93,-54,-85,0,0,74,97,129,214,270,259,247,234,228,408,351,337,303,274,425,407,787,753,1028,993,1235,1123,1780,1733,2731,2684,5056,5022,29988,29988,29986,29980,29984,29985,29986,29987,29987,29988,29992,29993]} 1. e4 {[%emt 0:00:03]} c5 {[%emt 0:00:06]} 2. Nf3 {[%emt 0:00:02]} d6 {[%emt 0:00:10]} 3. d4 {[%emt 0:00:03]} cxd4 {[%emt 0:00:07]} 4. Nxd4 {[%emt 0:00:02]} Nf6 {[%emt 0:00:14]} 5. Nc3 {[%emt 0:00:03]} a6 {[%emt 0:00:17]} 6. Bg5 {[%emt 0:00:04]} e6 {[%emt 0:00:09]} 7. f4 {[%emt 0:00:03]} Be7 {[%emt 0:00:10]} 8. Qf3 {[%emt 0:00:04]} Qc7 {[%emt 0:00:13]} 9. O-O-O {[%emt 0:00:05]} Nbd7 {[%emt 0:00:12]} 10. Bd3 {[%emt 0:01:37]} h6 {[%emt 0:00:38]} 11. Bh4 {[%emt 0:00:06]} g5 {[%emt 0:00:15]} 12. fxg5 {[%emt 0:00:03]} Ne5 {[%emt 0:00:20]} 13. Qe2 {[%emt 0:00:25]} Nfg4 {[%emt 0:00:15]} 14. h3 {[%emt 0:01:16]} hxg5 {[%emt 0:00:37]} 15. Bg3 {[%emt 0:00:15]} Nf6 {[%emt 0:00:42]} 16. h4 {[%emt 0:04:05] B99: Sicilian Najdorf: 6 Bg5 e6 7 f4 Be7 8 Qf3 Qc7 9 0-0-0 Nbd7.} g4 {[%emt 0:09:14] [#]} 17. Bf2 $146 {[%emt 0:07:49]} ({Predecessor:} 17. h5 Rxh5 18. Bxe5 dxe5 19. Nb3 Rg5 20. Rh8+ Bf8 21. Qf2 Rg6 22. Rf1 Rh6 23. Rh1 Rxh1+ 24. Rxh1 {0-1 (45) Kotter,R (2265)-Moiseev,V (2465) Germany 1994}) 17... b5 {[%emt 0:07:12]} 18. a3 $1 {[%emt 0:28:20] The position is equal.} Bd7 {[%emt 0:07:38]} 19. Be3 {[%emt 0:03:39]} (19. Rhf1 $11 {is superior.}) 19... Rb8 {[%emt 0:05:16]} (19... Qb7 $15 {feels stronger.}) 20. Bg5 {[%emt 0:05:09]} Qb6 {[%emt 0:08:48]} 21. Nb3 {[%emt 0:08:56]} (21. Be3 $11) 21... a5 $1 $17 {[%emt 0:05:44]} 22. Rhf1 {[%emt 0:07:51]} (22. Na2 $17 {keeps fighting.}) 22... Nh5 $19 {[%emt 0:06:06]} 23. Be3 {[%emt 0:16:45]} Qc7 {[%emt 0:01:54]} 24. Bxb5 {[%emt 0:01:40]} Ng3 {[%emt 0:06:21]} 25. Bxd7+ {[%emt 0:00:12]} Qxd7 {[%emt 0:01:03]} 26. Qa6 {[%emt 0:01:52]} Nxf1 {[%emt 0:01:00]} 27. Rxf1 {[%emt 0:00:02]} Rxh4 {[%emt 0:07:03]} 28. Nxa5 {[%emt 0:01:01]} Rh2 {[%emt 0:07:07]} 29. Rg1 {[%emt 0:02:41]} Rc8 {[%emt 0:06:05]} 30. Bf4 {[%emt 0:00:16]} (30. Nb5 $142) 30... Rh5 $1 $17 {[%emt 0:00:24]} 31. Rd1 {[%emt 0:00:26]} Qc7 {[%emt 0:02:03]} 32. Nb3 {[%emt 0:06:09]} (32. Bg3 $17 {was called for.}) 32... Qc4 $2 {[%emt 0:07:42]} (32... Nc4 $1 $19 {[%cal Rc4b2]} 33. Nb5 Qc6 34. Qxc6+ Rxc6) 33. Qb6 {[%emt 0:02:42]} (33. Qa7 $142) 33... Qc7 {[%emt 0:07:08]} (33... Qc6 $17 34. Qxc6+ Nxc6) 34. Qa6 $19 {[%emt 0:00:26] [#]} Qc6 {[%emt 0:01:33]} (34... Nc4 $1 $19 {[%cal Rc4b2] Hoping for ...Nxb2!} 35. Nb5 Qc6 36. Qxc6+ Rxc6) 35. Qe2 {[%emt 0:01:37] [#]} (35. Qxc6+ $17 Nxc6 36. Kb1 (36. Bxd6 $2 Bxd6 37. Rxd6 Rh2 $19)) 35... Bg5 $2 {[%emt 0:02:23]} (35... Nc4 $1 $19 {[%cal Rc4b2] White must now prevent ...Nxb2!} 36. Nd4 Qb7) 36. Bxg5 $11 {[%emt 0:00:23]} Rxg5 {[%emt 0:00:03]} 37. Nd4 {[%emt 0:00:35]} Qb6 {[%emt 0:01:13]} 38. Ndb5 {[%emt 0:01:39]} Nc4 $36 {[%emt 0:01:06][%mdl 2048] White is under pressure.} 39. a4 {[%emt 0:01:00]} Ke7 {[%emt 0:00:42] And now ...Qe3+ would win.} 40. b3 {[%emt 0:00:28]} (40. Rd4 $1 $11 {remains equal.} Qc5 41. b3) 40... Qe3+ $17 {[%emt 0:00:23]} 41. Qxe3 {[%emt 0:30:28]} Nxe3 {[%emt 0:30:06]} 42. Rd2 {[%emt 0:00:23]} Rh5 {[%emt 0:00:00]} 43. Re2 {[%emt 0:00:00]} Nf1 {[%emt 0:00:00]} 44. Kb2 {[%emt 0:00:00]} Rhc5 {[%emt 0:00:00]} (44... Ng3 $17 45. Rd2 Rhc5) 45. b4 {[%emt 0:00:00]} Rc4 {[%emt 0:00:00]} (45... Re5 $11) 46. Kb3 $16 {[%emt 0:00:00][%mdl 1024] White has strong compensation.} Ng3 {[%emt 0:00:00]} 47. Re3 {[%emt 0:00:00]} (47. Re1 $16) 47... Nh5 {[%emt 0:00:00]} 48. a5 {[%emt 0:00:00]} Nf6 {[%emt 0:00:00]} 49. Na7 {[%emt 0:00:00] Inhibits R4c6. Pair of Knights!} R8c7 {[%emt 0:00:00] aiming for ...Rxc3+.} 50. Ncb5 {[%emt 0:00:00]} Rxc2 {[%emt 0:00:00]} 51. Nxc7 {[%emt 0:00:00]} Rxc7 $18 {[%emt 0:00:00][%mdl 4096] Endgame KRN-KRN} 52. Nb5 {[%emt 0:00:00]} Rc8 {[%emt 0:01:29]} (52... Rc1 $142 53. a6 Nd7) 53. Nxd6 {[%emt 0:00:00]} Ra8 {[%emt 0:00:26]} (53... Rc1 $142 54. Rd3 Nd7 55. Nxf7 Rb1+ 56. Ka3 Rg1) 54. Nc4 {[%emt 0:00:00]} Nd7 {[%emt 0:00:41]} 55. b5 {[%emt 0:00:00]} Rh8 {[%emt 0:01:18]} 56. a6 {[%emt 0:00:18]} Kd8 {[%emt 0:00:17]} 57. Kb4 {[%emt 0:00:54]} Kc7 {[%emt 0:00:22]} 58. Rc3 {[%emt 0:00:32] Ne5+ would kill now.} Kb8 {[%emt 0:00:40]} 59. Nd6 {[%emt 0:00:36] Intending a7+ and mate.} f6 {[%emt 0:00:23]} 60. Ka5 {[%emt 0:00:35] White mates.} Rd8 {[%emt 0:01:02]} 61. Nb7 {[%emt 0:03:00]} Rh8 {[%emt 0:00:40]} 62. Nc5 {[%emt 0:00:27]} Nxc5 {[%emt 0:01:55]} 63. Rxc5 {[%emt 0:00:02]} Rh1 {[%emt 0:00:11]} 64. Kb6 {[%emt 0:00:20]} Ra1 {[%emt 0:00:21]} 65. Rc7 {[%emt 0:00:17] What a bad dream for Black.  Weighted Error Value: White=0.19 (very precise) /Black=0.53} 1-0

[Event "Krakow Championship-A 2022"]
[Site "Krakow"]
[Date "2022.06.25"]
[Round "1.17"]
[White "Mikrut, Dariusz"]
[Black "Michalicka, Milan"]
[Result "1-0"]
[ECO "E81"]
[WhiteElo "2361"]
[BlackElo "2222"]
[Annotator "TA"]
[PlyCount "53"]
[EventDate "2022.06.25"]
[EventType "swiss"]
[EventCountry "POL"]
[SourceTitle "playchess.com"]
[Source "ChessBase"]
[SourceQuality "1"]
[TimeControl "40/5400+30:1800+30"]

{[%evp 16,53,51,35,55,52,59,56,56,52,50,30,53,6,31,31,26,41,35,40,46,46,54,23,50,29,111,60,114,0,271,191,184,183,358,249,715,714,680,653]} 1. d4 {[%emt 0:01:06]} Nf6 {[%emt 0:00:08]} 2. c4 {[%emt 0:00:03]} g6 {[%emt 0:00:09]} 3. Nc3 {[%emt 0:00:04]} Bg7 {[%emt 0:00:10]} 4. e4 {[%emt 0:02:49]} d6 {[%emt 0:00:10]} 5. f3 {[%emt 0:00:04]} O-O {[%emt 0:00:24]} 6. Be3 {[%emt 0:03:31]} Nbd7 {[%emt 0:00:31]} 7. Qd2 {[%emt 0:00:14]} a6 {[%emt 0:01:41]} 8. Bd3 {[%emt 0:04:22]} c5 {[%emt 0:00:28]} 9. Nge2 {[%emt 0:00:07]} b6 {[%emt 0:02:50] E81: King's Indian: Sämisch: 6th move deviations (including 6 Be3 c6).} 10. O-O {[%emt 0:04:52]} Bb7 {[%emt 0:00:29]} 11. Rad1 {[%emt 0:04:49]} Rc8 {[%emt 0:03:18] White is slightly better.} 12. b3 {[%emt 0:04:43]} cxd4 {[%emt 0:00:15]} 13. Nxd4 {[%emt 0:00:36]} e6 {[%emt 0:01:27]} 14. Bb1 {[%emt 0:08:39] [#]} (14. g4 $14 {might be stronger.}) 14... Re8 $146 {[%emt 0:17:10]} (14... d5 {with more complications.} 15. exd5 exd5 16. cxd5 Bxd5 17. Nf5 Rxc3 18. Qxc3 gxf5 19. Bxf5 Re8) ({Predecessor:} 14... Qc7 15. Nde2 Ne8 16. Kh1 b5 17. Rc1 bxc4 18. bxc4 Ne5 19. Na4 Nxc4 20. Rxc4 Qxc4 {½-½ (38) Agrest,I (2286)-Serikbay,A (2286) Moscow 2019}) 15. Bg5 {[%emt 0:10:19]} Qc7 {[%emt 0:12:19]} 16. Nde2 {[%emt 0:08:28]} Bf8 {[%emt 0:09:28][%cal Ob6b5]} 17. Kh1 {[%emt 0:02:03]} Be7 {[%emt 0:10:37]} 18. Rc1 {[%emt 0:03:39]} Qb8 {[%emt 0:05:59]} 19. Nd4 {[%emt 0:12:05]} Rcd8 {[%emt 0:03:26]} 20. f4 {[%emt 0:05:22]} Nc5 {[%emt 0:01:45]} (20... d5 $11) 21. Rce1 {[%emt 0:00:18] White is more active.} (21. f5 $16 gxf5 22. exf5) 21... e5 {[%emt 0:06:56]} ({Black should try} 21... Ng4 $1 $14) 22. fxe5 {[%emt 0:14:48]} (22. Nf3 $16) 22... Ng4 $2 {[%emt 0:00:51][%mdl 8192] [#]} (22... dxe5 $11 23. Bxf6 Bxf6) 23. Bxe7 {[%emt 0:00:58]} dxe5 {[%emt 0:04:54]} 24. Nd5 {[%emt 0:02:38]} ({Don't play} 24. Bxd8 exd4 25. Qf4 Qxf4 26. Rxf4 Rxd8 $16) 24... Bxd5 $2 {[%emt 0:05:22]} (24... exd4 25. Nf6+ Nxf6 26. Bxf6 Ne6) 25. exd5 {[%emt 0:01:58] Dancing on a razor blade.} Rxe7 $2 {[%emt 0:02:36]} (25... exd4 26. g3 Rd7) 26. Nc6 $18 {[%emt 0:00:24][%csl LRb8,LRd8,LRe7]} Qd6 {[%emt 0:01:04]} 27. Qg5 {[%emt 0:00:11] Weighted Error Value: White=0.28 (precise) /Black=0.47} 1-0

[Event "Krakow Championship-A 2022"]
[Site "Krakow"]
[Date "2022.06.25"]
[Round "1.18"]
[White "Torkkola, Henri"]
[Black "Skytte, Rasmus"]
[Result "1/2-1/2"]
[ECO "A45"]
[WhiteElo "2197"]
[BlackElo "2357"]
[Annotator "TA"]
[PlyCount "57"]
[EventDate "2022.06.25"]
[EventType "swiss"]
[EventCountry "POL"]
[SourceTitle "playchess.com"]
[Source "ChessBase"]
[SourceQuality "1"]
[TimeControl "40/5400+30:1800+30"]

{[%evp 9,57,0,9,6,20,9,15,8,25,0,6,0,19,18,16,19,24,22,25,0,17,9,25,0,0,0,12,11,25,29,31,36,36,28,35,7,13,8,17,5,24,23,42,18,31,0,42,0,34,0]} 1. d4 {[%emt 0:00:03]} Nf6 {[%emt 0:00:56]} 2. Bf4 {[%emt 0:00:13]} d5 {[%emt 0:00:53]} 3. e3 {[%emt 0:00:10]} c5 {[%emt 0:00:20]} 4. Nf3 {[%emt 0:00:09]} Nc6 {[%emt 0:00:21]} 5. Nbd2 {[%emt 0:00:08]} cxd4 {[%emt 0:00:35]} 6. exd4 {[%emt 0:00:07] D02: 1 d4 d5 2 Nf3 sidelines, including 2...Nf6 3 g3 and 2...Nf6 3 Bf4.} Qb6 {[%emt 0:00:11]} 7. Nb3 {[%emt 0:08:21]} Bf5 $1 {[%emt 0:00:41][%mdl 4] is recently more successful than 7...Bg4.} 8. c3 {[%emt 0:04:09] Against Nb4. The position is equal.} e6 {[%emt 0:00:22]} 9. Be2 {[%emt 0:00:16]} Be7 {[%emt 0:00:14]} 10. O-O {[%emt 0:00:08]} O-O {[%emt 0:00:09]} 11. Nh4 {[%emt 0:04:52]} Be4 {[%emt 0:02:28]} 12. f3 {[%emt 0:00:58]} Bg6 {[%emt 0:01:38]} 13. Nxg6 {[%emt 0:00:08]} hxg6 {[%emt 0:00:40] [#]} 14. Kh1 $146 {[%emt 0:04:09]} ({Predecessor:} 14. Bd3 e5 15. Be3 exd4 16. cxd4 Ne5 17. Rc1 Rac8 18. Rxc8 Rxc8 19. Bb1 Nc4 20. Bc1 {0-1 (37) Gajewski,G (2589)-Bluebaum,M (2642) Warsaw 2021}) 14... Nh5 {[%emt 0:05:26]} 15. Be3 {[%emt 0:06:33]} Qc7 {[%emt 0:09:13]} 16. Qd2 {[%emt 0:09:26]} Bd6 {[%emt 0:02:19]} 17. g3 {[%emt 0:00:14]} Rfe8 {[%emt 0:10:18]} ({But not} 17... Bxg3 18. hxg3 Nxg3+ 19. Kg2 $14 (19. Kg1 Nxf1 20. Kxf1 Ne7 $14)) 18. Rae1 {[%emt 0:07:54]} Rad8 {[%emt 0:04:20]} 19. Bf2 {[%emt 0:09:41]} a6 {[%emt 0:04:57]} 20. Nc1 {[%emt 0:06:31]} Nf6 {[%emt 0:13:13]} 21. Nd3 {[%emt 0:03:09]} Na5 {[%emt 0:05:47]} 22. Bd1 {[%emt 0:09:45]} Nc4 {[%emt 0:01:51]} 23. Qc1 {[%emt 0:00:10]} Rc8 {[%emt 0:01:50]} 24. Kg2 {[%emt 0:01:09]} Nd7 {[%emt 0:03:09]} 25. Re2 {[%emt 0:02:32]} Na5 {[%emt 0:08:31]} 26. Qd2 {[%emt 0:02:49]} Nc4 {[%emt 0:01:02]} 27. Qc1 {[%emt 0:00:05]} Na5 {[%emt 0:00:07]} 28. Qd2 {[%emt 0:00:05]} Nc4 {[%emt 0:00:07]} 29. Qc1 {Weighted Error Value: White=0.10 (very precise) /Black=0.07 (flawless)} 1/2-1/2

[Event "Krakow Championship-A 2022"]
[Site "Krakow"]
[Date "2022.06.25"]
[Round "1.19"]
[White "Nurkiewicz, Maciej"]
[Black "Trybus, Daniel"]
[Result "1-0"]
[ECO "B90"]
[WhiteElo "2332"]
[BlackElo "2145"]
[Annotator "RC"]
[PlyCount "47"]
[EventDate "2022.06.25"]
[EventType "swiss"]
[EventCountry "POL"]
[SourceTitle "playchess.com"]
[Source "ChessBase"]
[SourceQuality "1"]
[TimeControl "40/5400+30:1800+30"]

1. e4 {[%emt 0:00:07]} c5 {[%emt 0:00:04]} 2. Nf3 {[%emt 0:01:30]} d6 {[%emt 0:00:03]} 3. d4 {[%emt 0:00:06]} cxd4 {[%emt 0:00:02]} 4. Nxd4 {[%emt 0:00:06]} Nf6 {[%emt 0:00:04]} 5. Nc3 {[%emt 0:00:06]} a6 {[%emt 0:00:02]} 6. Be3 {[%emt 0:00:13]} e6 {[%emt 0:00:06]} 7. f3 {[%emt 0:06:03]} h5 {[%emt 0:01:57]} 8. a4 {[%emt 0:14:02]} Nc6 {[%emt 0:03:11]} 9. Bc4 {[%emt 0:06:44]} d5 {[%emt 0:03:40]} 10. exd5 {[%emt 0:02:54]} exd5 {[%emt 0:00:31]} 11. Bb3 {[%emt 0:01:13]} Bd6 {[%emt 0:01:09]} 12. Qe2 {[%emt 0:10:24]} O-O {[%emt 0:02:44]} 13. O-O-O {[%emt 0:06:15]} Re8 {[%emt 0:07:24]} 14. Qd2 {[%emt 0:00:05]} Qc7 {[%emt 0:03:27]} 15. Kb1 {[%emt 0:05:46]} Rxe3 {[%emt 0:25:41]} 16. Qxe3 {[%emt 0:00:30]} Qa5 {[%emt 0:04:20]} 17. Nxd5 {[%emt 0:06:29]} Nxd5 {[%emt 0:03:26]} 18. Qe8+ {[%emt 0:00:09]} Bf8 {[%emt 0:00:01]} 19. Nxc6 {[%emt 0:01:05]} bxc6 {[%emt 0:00:31]} 20. Qxc6 {[%emt 0:00:44]} Nb6 {[%emt 0:00:49]} 21. Rd8 {[%emt 0:02:28]} Bb7 {[%emt 0:03:47]} 22. Bxf7+ {[%emt 0:06:25]} Kxf7 {[%emt 0:01:56]} 23. Qxb7+ {[%emt 0:02:00]} Kg8 {[%emt 0:00:44]} 24. Rxa8 1-0